[Event "January 2 Late 2024"]
[Site "https://www.chess.com"]
[Date "2024.01.02"]
[Round "2"]
[White "Remizov, Yaroslav"]
[Black "Lund, Gunnar"]
[Result "0-1"]
[Board "55"]
[TimeControl "180+1"]
[WhiteFideId "34134015"]
[BlackFideId "1520814"]
[WhiteElo "2855"]
[BlackElo "2564"]
[WhiteTeam "RUS"]
[BlackTeam "NOR"]
[WhiteClock "0:00:00"]
[BlackClock "0:00:04"]

1. e4 {[%clk 0:03:00]}  d6 {[%clk 0:02:59]} 2. d4 {[%clk 0:03:00]}  Nf6 {[%clk 0:02:59]} 3. Nc3 {[%clk 0:03:00]}  e5 {[%clk 0:03:00]} 4. Nf3 {[%clk 0:03:01]}  exd4 {[%clk 0:03:00]} 5. Nxd4 {[%clk 0:02:59]}  Be7 {[%clk 0:03:00]} 6. Be2 {[%clk 0:02:59]}  O-O {[%clk 0:03:00]} 7. O-O {[%clk 0:02:59]}  Re8 {[%clk 0:03:01]} 8. f4 {[%clk 0:02:57]}  c5 {[%clk 0:03:00]} 9. Nb3 {[%clk 0:02:52]}  Nc6 {[%clk 0:03:01]} 10. Bf3 {[%clk 0:02:48]}  Bf8 {[%clk 0:03:01]} 11. Kh1 {[%clk 0:02:02]}  Nb4 {[%clk 0:02:29]} 12. a3 {[%clk 0:01:55]}  Nc6 {[%clk 0:02:29]} 13. Bd2 {[%clk 0:01:52]}  Nd4 {[%clk 0:02:29]} 14. Be1 {[%clk 0:01:27]}  Nxf3 {[%clk 0:02:17]} 15. Qxf3 {[%clk 0:01:28]}  Bg4 {[%clk 0:02:16]} 16. Qd3 {[%clk 0:01:25]}  Nxe4 {[%clk 0:01:46]} 17. Nxe4 {[%clk 0:01:12]}  Bf5 {[%clk 0:01:46]} 18. Nbd2 {[%clk 0:00:52]}  d5 {[%clk 0:01:46]} 19. Rd1 {[%clk 0:00:53]}  dxe4 {[%clk 0:01:41]} 20. Qe2 {[%clk 0:00:44]}  Qc8 {[%clk 0:01:20]} 21. h3 {[%clk 0:00:39]}  Qc6 {[%clk 0:01:19]} 22. Nc4 {[%clk 0:00:37]}  f6 {[%clk 0:01:16]} 23. Ne3 {[%clk 0:00:35]}  Be6 {[%clk 0:01:16]} 24. Bc3 {[%clk 0:00:33]}  Rad8 {[%clk 0:01:16]} 25. f5 {[%clk 0:00:26]}  Bf7 {[%clk 0:01:15]} 26. Qg4 {[%clk 0:00:27]}  b5 {[%clk 0:01:10]} 27. b3 {[%clk 0:00:22]}  b4 {[%clk 0:01:06]} 28. Bb2 {[%clk 0:00:22]}  bxa3 {[%clk 0:00:52]} 29. Bxa3 {[%clk 0:00:22]}  c4 {[%clk 0:00:52]} 30. Bxf8 {[%clk 0:00:20]}  Rxf8 {[%clk 0:00:53]} 31. bxc4 {[%clk 0:00:21]}  Bxc4 {[%clk 0:00:51]} 32. Rfe1 {[%clk 0:00:15]}  Bf7 {[%clk 0:00:45]} 33. Ra1 {[%clk 0:00:13]}  Rd7 {[%clk 0:00:40]} 34. Qg3 {[%clk 0:00:13]}  Rfd8 {[%clk 0:00:36]} 35. Ra3 {[%clk 0:00:12]}  Kh8 {[%clk 0:00:28]} 36. Rea1 {[%clk 0:00:11]}  Qc5 {[%clk 0:00:26]} 37. Kh2 {[%clk 0:00:11]}  Re8 {[%clk 0:00:13]} 38. Ra5 {[%clk 0:00:11]}  Qd4 {[%clk 0:00:11]} 39. R5a4 {[%clk 0:00:11]}  Qb6 {[%clk 0:00:11]} 40. Ra6 {[%clk 0:00:10]}  Qb7 {[%clk 0:00:10]} 41. R6a5 {[%clk 0:00:10]}  Ree7 {[%clk 0:00:10]} 42. Rxa7 {[%clk 0:00:07]}  Qxa7 {[%clk 0:00:09]} 43. Rxa7 {[%clk 0:00:08]}  Rxa7 {[%clk 0:00:10]} 44. Qb8+ {[%clk 0:00:08]}  Bg8 {[%clk 0:00:10]} 45. c4 {[%clk 0:00:07]}  Rab7 {[%clk 0:00:08]} 46. Qd8 {[%clk 0:00:05]}  Red7 {[%clk 0:00:08]} 47. Qc8 {[%clk 0:00:04]}  Rbc7 {[%clk 0:00:08]} 48. Qa8 {[%clk 0:00:04]}  Ra7 {[%clk 0:00:07]} 49. Qb8 {[%clk 0:00:05]}  Rab7 {[%clk 0:00:07]} 50. Qf4 {[%clk 0:00:05]}  Rbc7 {[%clk 0:00:05]} 51. Qxe4 {[%clk 0:00:05]}  Re7 {[%clk 0:00:06]} 52. Qf4 {[%clk 0:00:05]}  Re5 {[%clk 0:00:06]} 53. Qd4 {[%clk 0:00:03]}  Rce7 {[%clk 0:00:05]} 54. Nd5 {[%clk 0:00:03]}  Bxd5 {[%clk 0:00:04]} 55. cxd5 {[%clk 0:00:04]}  Rd7 {[%clk 0:00:05]} 56. d6 {[%clk 0:00:04]}  Re8 {[%clk 0:00:06]} 57. Qc5 {[%clk 0:00:02]}  Red8 {[%clk 0:00:06]} 58. Qb5 {[%clk 0:00:03]}  Rxd6 {[%clk 0:00:07]} 59. Qb3 {[%clk 0:00:03]}  Rd5 {[%clk 0:00:07]} 60. Qf3 {[%clk 0:00:02]}  Rd3 {[%clk 0:00:07]} 61. Qe4 {[%clk 0:00:02]}  R3d4 {[%clk 0:00:07]} 62. Qe7 {[%clk 0:00:02]}  R4d7 {[%clk 0:00:08]} 63. Qe6 {[%clk 0:00:02]}  Rd6 {[%clk 0:00:08]} 64. Qe7 {[%clk 0:00:03]}  R6d7 {[%clk 0:00:09]} 65. Qe6 {[%clk 0:00:03]}  Rc7 {[%clk 0:00:09]} 66. Qb6 {[%clk 0:00:03]}  Rcc8 {[%clk 0:00:09]} 67. h4 {[%clk 0:00:03]}  Re8 {[%clk 0:00:09]} 68. Kh3 {[%clk 0:00:03]}  Rc3+ {[%clk 0:00:09]} 69. g3 {[%clk 0:00:03]}  Rcc8 {[%clk 0:00:09]} 70. h5 {[%clk 0:00:03]}  Rb8 {[%clk 0:00:09]} 71. Qc6 {[%clk 0:00:03]}  h6 {[%clk 0:00:09]} 72. g4 {[%clk 0:00:02]}  Rbc8 {[%clk 0:00:10]} 73. Qb5 {[%clk 0:00:01]}  Re3+ {[%clk 0:00:10]} 74. Kh4 {[%clk 0:00:02]}  Rcc3 {[%clk 0:00:09]} 75. Qf1 {[%clk 0:00:02]}  Rf3 {[%clk 0:00:09]} 76. Qg2 {[%clk 0:00:02]}  Kh7 {[%clk 0:00:09]} 77. Qh2 {[%clk 0:00:02]}  Rc4 {[%clk 0:00:08]} 78. Qg2 {[%clk 0:00:02]}  Rff4 {[%clk 0:00:08]} 79. Kh3 {[%clk 0:00:02]}  Rc3+ {[%clk 0:00:07]} 80. Kh4 {[%clk 0:00:02]}  Rcc4 {[%clk 0:00:08]} 81. Qe2 {[%clk 0:00:03]}  Rxf5 {[%clk 0:00:07]} 82. Qxc4 {[%clk 0:00:02]}  Re5 {[%clk 0:00:07]} 83. Qd3+ {[%clk 0:00:02]}  Kg8 {[%clk 0:00:07]} 84. Kg3 {[%clk 0:00:03]}  Kf7 {[%clk 0:00:08]} 85. Kf4 {[%clk 0:00:03]}  Kf8 {[%clk 0:00:08]} 86. Qh7 {[%clk 0:00:03]}  Kf7 {[%clk 0:00:08]} 87. Qh8 {[%clk 0:00:04]}  Rg5 {[%clk 0:00:08]} 88. Qc8 {[%clk 0:00:02]}  Re5 {[%clk 0:00:08]} 89. Kf3 {[%clk 0:00:03]}  Rg5 {[%clk 0:00:08]} 90. Ke4 {[%clk 0:00:03]}  Re5+ {[%clk 0:00:08]} 91. Kd4 {[%clk 0:00:03]}  Rg5 {[%clk 0:00:08]} 92. Qc4+ {[%clk 0:00:04]}  Kf8 {[%clk 0:00:08]} 93. Qe6 {[%clk 0:00:04]}  Re5 {[%clk 0:00:07]} 94. Qc8+ {[%clk 0:00:04]}  Kf7 {[%clk 0:00:07]} 95. Qh8 {[%clk 0:00:03]}  Rg5 {[%clk 0:00:07]} 96. Qd8 {[%clk 0:00:02]}  Rxg4+ {[%clk 0:00:06]} 97. Kc5 {[%clk 0:00:03]}  Rg5+ {[%clk 0:00:05]} 98. Kd6 {[%clk 0:00:03]}  Re5 {[%clk 0:00:05]} 99. Qh8 {[%clk 0:00:02]}  Rxh5 {[%clk 0:00:04]} 100. Qc8 {[%clk 0:00:01]}  Re5 {[%clk 0:00:04]} 101. Kd7 {[%clk 0:00:01]}  Re7+ {[%clk 0:00:04]} 102. Kd6 {[%clk 0:00:02]}  Re5 {[%clk 0:00:04]} 103. Qc4+ {[%clk 0:00:02]}  Kg6 {[%clk 0:00:05]} 104. Qg4+ {[%clk 0:00:02]}  Rg5 {[%clk 0:00:05]} 105. Qe4+ {[%clk 0:00:03]}  Kf7 {[%clk 0:00:04]} 106. Kd7 {[%clk 0:00:02]}  Re5 {[%clk 0:00:04]} 107. Qh7 {[%clk 0:00:01]}  h5 {[%clk 0:00:04]} 108. Qh8 {[%clk 0:00:01]}  Rd5+ {[%clk 0:00:03]} 109. Kc6 {[%clk 0:00:01]}  Re5 {[%clk 0:00:04]} 110. Kd6 {[%clk 0:00:02]}  Re6+ {[%clk 0:00:04]} 111. Kd5 {[%clk 0:00:02]}  Re5+ {[%clk 0:00:05]} 112. Kd6 {[%clk 0:00:03]}  Re6+ {[%clk 0:00:05]} 113. Kc5 {[%clk 0:00:02]}  Re5+ {[%clk 0:00:05]} 114. Kd4 {[%clk 0:00:03]}  Rg5 {[%clk 0:00:05]} 115. Qh7 {[%clk 0:00:03]}  Rg4+ {[%clk 0:00:04]} 116. Kd5 {[%clk 0:00:03]}  Rg5+ {[%clk 0:00:05]} 117. Kd6 {[%clk 0:00:04]}  Re5 {[%clk 0:00:06]} 118. Qc2 {[%clk 0:00:03]}  Kg8 {[%clk 0:00:05]} 119. Qg6 {[%clk 0:00:02]}  Rg5 {[%clk 0:00:04]} 120. Qe8+ {[%clk 0:00:02]}  Kh7 {[%clk 0:00:05]} 121. Qe4+ {[%clk 0:00:02]}  Kh6 {[%clk 0:00:05]} 122. Qe8 {[%clk 0:00:02]}  Re5 {[%clk 0:00:04]} 123. Qf7 {[%clk 0:00:00]}  h4 {[%clk 0:00:04]} 0-1

[Event "January 2 Late 2024"]
[Site "https://www.chess.com"]
[Date "2024.01.02"]
[Round "2"]
[White "Mekhitarian, Krikor Sevag"]
[Black "Grinev, Valeriy"]
[Result "1-0"]
[Board "56"]
[TimeControl "180+1"]
[WhiteFideId "2107660"]
[BlackFideId "14117517"]
[WhiteElo "2842"]
[BlackElo "2563"]
[WhiteTeam "BRA"]
[BlackTeam "UKR"]
[WhiteClock "0:00:17"]
[BlackClock "0:00:10"]

1. Nf3 {[%clk 0:03:00]}  c5 {[%clk 0:02:55]} 2. c4 {[%clk 0:02:59]}  Nc6 {[%clk 0:02:52]} 3. Nc3 {[%clk 0:02:59]}  e5 {[%clk 0:02:52]} 4. e3 {[%clk 0:02:57]}  Nf6 {[%clk 0:02:51]} 5. d4 {[%clk 0:02:55]}  e4 {[%clk 0:02:49]} 6. d5 {[%clk 0:02:56]}  exf3 {[%clk 0:02:47]} 7. dxc6 {[%clk 0:02:56]}  dxc6 {[%clk 0:02:47]} 8. Qxd8+ {[%clk 0:02:55]}  Kxd8 {[%clk 0:02:48]} 9. gxf3 {[%clk 0:02:54]}  Be6 {[%clk 0:02:47]} 10. b3 {[%clk 0:02:54]}  Be7 {[%clk 0:02:43]} 11. Bb2 {[%clk 0:02:52]}  Nd7 {[%clk 0:02:42]} 12. O-O-O {[%clk 0:02:24]}  Bf6 {[%clk 0:02:40]} 13. f4 {[%clk 0:02:17]}  Ke7 {[%clk 0:02:36]} 14. Bd3 {[%clk 0:02:15]}  g6 {[%clk 0:02:35]} 15. h4 {[%clk 0:02:05]}  h5 {[%clk 0:02:34]} 16. Ne4 {[%clk 0:02:05]}  Bxb2+ {[%clk 0:02:34]} 17. Kxb2 {[%clk 0:02:06]}  Bg4 {[%clk 0:02:27]} 18. Rd2 {[%clk 0:02:03]}  Bf3 {[%clk 0:02:26]} 19. Rg1 {[%clk 0:02:01]}  Bxe4 {[%clk 0:02:26]} 20. Bxe4 {[%clk 0:02:02]}  Rad8 {[%clk 0:02:16]} 21. Bf3 {[%clk 0:01:52]}  Nf6 {[%clk 0:02:13]} 22. Rxd8 {[%clk 0:01:49]}  Rxd8 {[%clk 0:02:12]} 23. Kc2 {[%clk 0:01:50]}  Ke6 {[%clk 0:02:08]} 24. Rg5 {[%clk 0:01:48]}  Kd6 {[%clk 0:01:59]} 25. f5 {[%clk 0:01:23]}  Nh7 {[%clk 0:01:45]} 26. Rg1 {[%clk 0:01:20]}  gxf5 {[%clk 0:01:45]} 27. Rg7 {[%clk 0:01:13]}  Nf6 {[%clk 0:00:46]} 28. Rxf7 {[%clk 0:01:13]}  Ng4 {[%clk 0:00:47]} 29. Rxf5 {[%clk 0:01:05]}  Nxf2 {[%clk 0:00:46]} 30. Bxh5 {[%clk 0:01:02]}  Rh8 {[%clk 0:00:44]} 31. Rxf2 {[%clk 0:00:44]}  Rxh5 {[%clk 0:00:44]} 32. Rh2 {[%clk 0:00:44]}  Ke5 {[%clk 0:00:43]} 33. Kd3 {[%clk 0:00:45]}  Kf5 {[%clk 0:00:44]} 34. Rh1 {[%clk 0:00:43]}  Kg6 {[%clk 0:00:38]} 35. Ke4 {[%clk 0:00:42]}  Rh8 {[%clk 0:00:34]} 36. h5+ {[%clk 0:00:39]}  Kh6 {[%clk 0:00:34]} 37. Rh3 {[%clk 0:00:34]}  Re8+ {[%clk 0:00:35]} 38. Kf5 {[%clk 0:00:34]}  Rd8 {[%clk 0:00:34]} 39. e4 {[%clk 0:00:32]}  Rd2 {[%clk 0:00:34]} 40. e5 {[%clk 0:00:33]}  Rf2+ {[%clk 0:00:32]} 41. Ke6 {[%clk 0:00:32]}  Rxa2 {[%clk 0:00:33]} 42. Kd6 {[%clk 0:00:32]}  Rd2+ {[%clk 0:00:32]} 43. Kxc5 {[%clk 0:00:32]}  Re2 {[%clk 0:00:32]} 44. Kd6 {[%clk 0:00:32]}  b5 {[%clk 0:00:33]} 45. c5 {[%clk 0:00:31]}  a5 {[%clk 0:00:32]} 46. e6 {[%clk 0:00:29]}  a4 {[%clk 0:00:24]} 47. bxa4 {[%clk 0:00:29]}  bxa4 {[%clk 0:00:25]} 48. e7 {[%clk 0:00:29]}  Kg7 {[%clk 0:00:25]} 49. h6+ {[%clk 0:00:27]}  Kh7 {[%clk 0:00:21]} 50. Kd7 {[%clk 0:00:27]}  Rd2+ {[%clk 0:00:18]} 51. Kxc6 {[%clk 0:00:27]}  Re2 {[%clk 0:00:18]} 52. Kd6 {[%clk 0:00:23]}  Rd2+ {[%clk 0:00:19]} 53. Kc7 {[%clk 0:00:23]}  Re2 {[%clk 0:00:19]} 54. Kd8 {[%clk 0:00:23]}  Rd2+ {[%clk 0:00:19]} 55. Ke8 {[%clk 0:00:23]}  Rc2 {[%clk 0:00:17]} 56. c6 {[%clk 0:00:19]}  a3 {[%clk 0:00:17]} 57. Rxa3 {[%clk 0:00:18]}  Kxh6 {[%clk 0:00:14]} 58. Rd3 {[%clk 0:00:16]}  Rxc6 {[%clk 0:00:10]} 59. Kd7 {[%clk 0:00:17]} 1-0

[Event "January 2 Late 2024"]
[Site "https://www.chess.com"]
[Date "2024.01.02"]
[Round "2"]
[White "Klenburg, Michael"]
[Black "Panchenko, Dmitry"]
[Result "0-1"]
[Board "61"]
[TimeControl "180+1"]
[WhiteFideId "14102072"]
[BlackFideId "4169158"]
[WhiteElo "2546"]
[BlackElo "2819"]
[WhiteTeam "ISR"]
[BlackTeam "RUS"]
[WhiteClock "0:00:00"]
[BlackClock "0:01:00"]

1. e4 {[%clk 0:03:00]}  c6 {[%clk 0:02:59]} 2. d3 {[%clk 0:03:00]}  d5 {[%clk 0:02:59]} 3. Nd2 {[%clk 0:03:00]}  dxe4 {[%clk 0:02:58]} 4. dxe4 {[%clk 0:03:00]}  e5 {[%clk 0:02:58]} 5. Ngf3 {[%clk 0:03:00]}  Nd7 {[%clk 0:02:58]} 6. Nc4 {[%clk 0:02:58]}  Qc7 {[%clk 0:02:55]} 7. a4 {[%clk 0:02:58]}  a5 {[%clk 0:02:54]} 8. b3 {[%clk 0:02:55]}  Ngf6 {[%clk 0:02:53]} 9. Bb2 {[%clk 0:02:55]}  Bb4+ {[%clk 0:02:52]} 10. c3 {[%clk 0:02:53]}  Bc5 {[%clk 0:02:52]} 11. Nfd2 {[%clk 0:02:52]}  b5 {[%clk 0:02:50]} 12. axb5 {[%clk 0:02:47]}  cxb5 {[%clk 0:02:50]} 13. Ne3 {[%clk 0:02:47]}  Bxe3 {[%clk 0:02:46]} 14. fxe3 {[%clk 0:02:47]}  O-O {[%clk 0:02:46]} 15. Bxb5 {[%clk 0:02:42]}  Nc5 {[%clk 0:02:43]} 16. O-O {[%clk 0:02:35]}  Ncxe4 {[%clk 0:02:39]} 17. Nxe4 {[%clk 0:02:34]}  Nxe4 {[%clk 0:02:40]} 18. Bc4 {[%clk 0:02:31]}  Be6 {[%clk 0:02:36]} 19. Bxe6 {[%clk 0:02:27]}  fxe6 {[%clk 0:02:37]} 20. c4 {[%clk 0:02:23]}  Nc5 {[%clk 0:02:27]} 21. Qc2 {[%clk 0:02:06]}  Rxf1+ {[%clk 0:02:24]} 22. Rxf1 {[%clk 0:02:04]}  Rb8 {[%clk 0:02:23]} 23. Qc3 {[%clk 0:01:59]}  Rxb3 {[%clk 0:02:17]} 24. Qxe5 {[%clk 0:01:59]}  Qxe5 {[%clk 0:02:16]} 25. Bxe5 {[%clk 0:01:58]}  Ne4 {[%clk 0:02:15]} 26. Bd4 {[%clk 0:01:43]}  a4 {[%clk 0:02:13]} 27. c5 {[%clk 0:01:38]}  e5 {[%clk 0:02:11]} 28. Bxe5 {[%clk 0:01:38]}  Nxc5 {[%clk 0:02:11]} 29. Bd6 {[%clk 0:01:34]}  Ne6 {[%clk 0:02:10]} 30. Ra1 {[%clk 0:01:33]}  Rb6 {[%clk 0:02:07]} 31. Be5 {[%clk 0:01:29]}  Ra6 {[%clk 0:02:06]} 32. Ra3 {[%clk 0:01:18]}  Nc5 {[%clk 0:02:05]} 33. Kf2 {[%clk 0:01:15]}  Kf7 {[%clk 0:02:04]} 34. Ke2 {[%clk 0:01:14]}  g6 {[%clk 0:02:03]} 35. Bd4 {[%clk 0:01:14]}  Nb3 {[%clk 0:02:02]} 36. Kd3 {[%clk 0:01:13]}  Ke6 {[%clk 0:02:02]} 37. Kc4 {[%clk 0:01:12]}  Kd6 {[%clk 0:01:57]} 38. Kb5 {[%clk 0:00:48]}  Ra5+ {[%clk 0:01:53]} 39. Kb4 {[%clk 0:00:47]}  Ra8 {[%clk 0:01:52]} 40. Bb2 {[%clk 0:00:39]}  Nc5 {[%clk 0:01:48]} 41. Bd4 {[%clk 0:00:37]}  Nb3 {[%clk 0:01:40]} 42. Bb2 {[%clk 0:00:37]}  Rb8+ {[%clk 0:01:38]} 43. Kc3 {[%clk 0:00:28]}  Nc5 {[%clk 0:01:37]} 44. Kc2 {[%clk 0:00:25]}  Kd5 {[%clk 0:01:32]} 45. Bd4 {[%clk 0:00:25]}  Rb4 {[%clk 0:01:31]} 46. Rc3 {[%clk 0:00:15]}  Nb3 {[%clk 0:01:24]} 47. Kd3 {[%clk 0:00:13]}  Nxd4 {[%clk 0:01:24]} 48. exd4 {[%clk 0:00:13]}  Rxd4+ {[%clk 0:01:24]} 49. Ke3 {[%clk 0:00:14]}  Re4+ {[%clk 0:01:24]} 50. Kf3 {[%clk 0:00:13]}  Rb4 {[%clk 0:01:23]} 51. Rc8 {[%clk 0:00:12]}  Rb3+ {[%clk 0:01:13]} 52. Kf4 {[%clk 0:00:12]}  a3 {[%clk 0:01:05]} 53. Ra8 {[%clk 0:00:11]}  Kc4 {[%clk 0:01:04]} 54. g4 {[%clk 0:00:11]}  Kc3 {[%clk 0:01:04]} 55. h4 {[%clk 0:00:10]}  Kb2 {[%clk 0:01:04]} 56. Kg5 {[%clk 0:00:10]}  Rb7 {[%clk 0:01:03]} 57. h5 {[%clk 0:00:08]}  gxh5 {[%clk 0:01:03]} 58. gxh5 {[%clk 0:00:08]}  a2 {[%clk 0:01:02]} 59. h6 {[%clk 0:00:00]}  a1=Q {[%clk 0:01:00]} 0-1

[Event "January 2 Late 2024"]
[Site "https://www.chess.com"]
[Date "2024.01.02"]
[Round "2"]
[White "Pakleza, Zbigniew"]
[Black "Pinero Rodriguez, Carlos Jose"]
[Result "1-0"]
[Board "62"]
[TimeControl "180+1"]
[WhiteFideId "1119290"]
[BlackFideId "3901726"]
[WhiteElo "2818"]
[BlackElo "2541"]
[WhiteTeam "POL"]
[BlackTeam "VEN"]
[WhiteClock "0:00:33"]
[BlackClock "0:00:09"]

1. d4 {[%clk 0:03:00]}  Nf6 {[%clk 0:02:57]} 2. Nf3 {[%clk 0:03:01]}  g6 {[%clk 0:02:57]} 3. Bf4 {[%clk 0:03:01]}  Bg7 {[%clk 0:02:57]} 4. e3 {[%clk 0:03:01]}  O-O {[%clk 0:02:58]} 5. Be2 {[%clk 0:03:01]}  d6 {[%clk 0:02:59]} 6. O-O {[%clk 0:03:02]}  Nc6 {[%clk 0:02:59]} 7. h3 {[%clk 0:03:02]}  Nd7 {[%clk 0:03:00]} 8. Bh2 {[%clk 0:03:02]}  e5 {[%clk 0:03:00]} 9. c4 {[%clk 0:03:03]}  h6 {[%clk 0:02:48]} 10. Nc3 {[%clk 0:03:03]}  f5 {[%clk 0:02:46]} 11. dxe5 {[%clk 0:02:49]}  dxe5 {[%clk 0:02:45]} 12. Qd5+ {[%clk 0:02:49]}  Kh7 {[%clk 0:02:43]} 13. Rad1 {[%clk 0:02:48]}  Qe7 {[%clk 0:02:01]} 14. Qd2 {[%clk 0:02:45]}  Qf7 {[%clk 0:01:56]} 15. Nd5 {[%clk 0:02:36]}  Nc5 {[%clk 0:01:35]} 16. b4 {[%clk 0:02:36]}  Ne4 {[%clk 0:01:35]} 17. Qb2 {[%clk 0:02:27]}  f4 {[%clk 0:01:31]} 18. b5 {[%clk 0:02:23]}  Na5 {[%clk 0:00:40]} 19. Nxe5 {[%clk 0:02:14]}  Qf5 {[%clk 0:00:39]} 20. exf4 {[%clk 0:02:10]}  c6 {[%clk 0:00:32]} 21. Bg4 {[%clk 0:02:02]}  Bxe5 {[%clk 0:00:24]} 22. fxe5 {[%clk 0:01:57]}  Qf7 {[%clk 0:00:24]} 23. e6 {[%clk 0:01:31]}  Bxe6 {[%clk 0:00:20]} 24. Bxe6 {[%clk 0:01:32]}  Qxe6 {[%clk 0:00:21]} 25. Nc7 {[%clk 0:01:30]}  Qf7 {[%clk 0:00:18]} 26. Nxa8 {[%clk 0:01:28]}  Rxa8 {[%clk 0:00:19]} 27. Rd4 {[%clk 0:01:05]}  Ng5 {[%clk 0:00:15]} 28. Rfd1 {[%clk 0:00:43]}  Re8 {[%clk 0:00:14]} 29. Qb4 {[%clk 0:00:38]}  b6 {[%clk 0:00:09]} 30. Rd7 {[%clk 0:00:33]} 1-0

[Event "January 2 Late 2024"]
[Site "https://www.chess.com"]
[Date "2024.01.02"]
[Round "2"]
[White "Wieczorek, Oskar"]
[Black "Przybylski, Wojciech"]
[Result "0-1"]
[Board "75"]
[TimeControl "180+1"]
[WhiteFideId "1133950"]
[BlackFideId "1117599"]
[WhiteElo "2770"]
[BlackElo "2524"]
[WhiteTeam "POL"]
[BlackTeam "POL"]
[WhiteClock "0:00:00"]
[BlackClock "0:00:02"]

1. e4 {[%clk 0:03:00]}  e5 {[%clk 0:02:59]} 2. Nf3 {[%clk 0:03:01]}  Nf6 {[%clk 0:02:59]} 3. Nc3 {[%clk 0:03:01]}  Bb4 {[%clk 0:02:56]} 4. Nxe5 {[%clk 0:03:01]}  O-O {[%clk 0:02:56]} 5. Be2 {[%clk 0:03:01]}  Re8 {[%clk 0:02:54]} 6. Nd3 {[%clk 0:03:01]}  Bxc3 {[%clk 0:02:54]} 7. dxc3 {[%clk 0:03:02]}  Nxe4 {[%clk 0:02:54]} 8. O-O {[%clk 0:03:03]}  d5 {[%clk 0:02:54]} 9. Re1 {[%clk 0:02:59]}  c6 {[%clk 0:02:51]} 10. Bf1 {[%clk 0:02:57]}  Nd7 {[%clk 0:02:47]} 11. f3 {[%clk 0:02:56]}  Nef6 {[%clk 0:02:37]} 12. Be3 {[%clk 0:02:53]}  Nf8 {[%clk 0:02:33]} 13. Bf2 {[%clk 0:02:53]}  Rxe1 {[%clk 0:02:30]} 14. Qxe1 {[%clk 0:02:52]}  Bf5 {[%clk 0:02:27]} 15. Qd2 {[%clk 0:02:52]}  h6 {[%clk 0:02:26]} 16. a4 {[%clk 0:02:51]}  Ng6 {[%clk 0:02:20]} 17. a5 {[%clk 0:02:50]}  Nd7 {[%clk 0:02:13]} 18. a6 {[%clk 0:02:18]}  b6 {[%clk 0:02:08]} 19. Nb4 {[%clk 0:02:18]}  Rc8 {[%clk 0:02:01]} 20. Re1 {[%clk 0:02:15]}  Nf6 {[%clk 0:01:58]} 21. c4 {[%clk 0:02:13]}  Be6 {[%clk 0:01:50]} 22. c5 {[%clk 0:02:07]}  b5 {[%clk 0:01:45]} 23. Bd4 {[%clk 0:01:42]}  Nd7 {[%clk 0:01:34]} 24. c3 {[%clk 0:01:40]}  Qg5 {[%clk 0:01:28]} 25. Qxg5 {[%clk 0:01:29]}  hxg5 {[%clk 0:01:28]} 26. g3 {[%clk 0:01:29]}  Ngf8 {[%clk 0:01:17]} 27. Kf2 {[%clk 0:01:26]}  f6 {[%clk 0:01:17]} 28. h4 {[%clk 0:01:04]}  gxh4 {[%clk 0:01:13]} 29. gxh4 {[%clk 0:01:05]}  Kf7 {[%clk 0:01:13]} 30. Bd3 {[%clk 0:01:05]}  Ne5 {[%clk 0:00:57]} 31. Bf1 {[%clk 0:00:48]}  Nfd7 {[%clk 0:00:41]} 32. Kg3 {[%clk 0:00:48]}  Nc4 {[%clk 0:00:30]} 33. Nd3 {[%clk 0:00:20]}  Bf5 {[%clk 0:00:24]} 34. b4 {[%clk 0:00:17]}  Re8 {[%clk 0:00:18]} 35. Rxe8 {[%clk 0:00:14]}  Kxe8 {[%clk 0:00:19]} 36. Nf4 {[%clk 0:00:14]}  Nb8 {[%clk 0:00:15]} 37. Nh5 {[%clk 0:00:07]}  Kf7 {[%clk 0:00:15]} 38. Kf4 {[%clk 0:00:07]}  Bg6 {[%clk 0:00:14]} 39. Ng3 {[%clk 0:00:07]}  Nxa6 {[%clk 0:00:14]} 40. Bh3 {[%clk 0:00:07]}  Nb8 {[%clk 0:00:11]} 41. h5 {[%clk 0:00:08]}  Bd3 {[%clk 0:00:11]} 42. Nf5 {[%clk 0:00:06]}  g6 {[%clk 0:00:08]} 43. hxg6+ {[%clk 0:00:02]}  Kxg6 {[%clk 0:00:08]} 44. Ne7+ {[%clk 0:00:02]}  Kf7 {[%clk 0:00:08]} 45. Nc8 {[%clk 0:00:03]}  a5 {[%clk 0:00:07]} 46. bxa5 {[%clk 0:00:02]}  Nxa5 {[%clk 0:00:07]} 47. Nd6+ {[%clk 0:00:03]}  Ke7 {[%clk 0:00:08]} 48. Nc8+ {[%clk 0:00:03]}  Kf7 {[%clk 0:00:08]} 49. Nd6+ {[%clk 0:00:03]}  Ke7 {[%clk 0:00:08]} 50. Bf5 {[%clk 0:00:04]}  Bxf5 {[%clk 0:00:05]} 51. Kxf5 {[%clk 0:00:05]}  Nd7 {[%clk 0:00:02]} 52. Kg6 {[%clk 0:00:05]}  Nc4 {[%clk 0:00:03]} 53. Nf5+ {[%clk 0:00:06]}  Ke6 {[%clk 0:00:03]} 54. Ng7+ {[%clk 0:00:07]}  Ke7 {[%clk 0:00:03]} 55. Nf5+ {[%clk 0:00:07]}  Ke6 {[%clk 0:00:04]} 56. Ng7+ {[%clk 0:00:07]}  Ke7 {[%clk 0:00:04]} 57. Nh5 {[%clk 0:00:05]}  Nce5+ {[%clk 0:00:04]} 58. Kf5 {[%clk 0:00:06]}  Nxf3 {[%clk 0:00:04]} 59. Bxf6+ {[%clk 0:00:05]}  Nxf6 {[%clk 0:00:04]} 60. Nxf6 {[%clk 0:00:06]}  Nd2 {[%clk 0:00:03]} 61. Ng8+ {[%clk 0:00:04]}  Kd7 {[%clk 0:00:03]} 62. Ke5 {[%clk 0:00:05]}  Ne4 {[%clk 0:00:03]} 63. Kd4 {[%clk 0:00:05]}  Ke6 {[%clk 0:00:03]} 64. Nh6 {[%clk 0:00:06]}  Nf2 {[%clk 0:00:02]} 65. Ke3 {[%clk 0:00:06]}  Nd1+ {[%clk 0:00:02]} 66. Kd2 {[%clk 0:00:06]}  Nf2 {[%clk 0:00:02]} 67. Ke3 {[%clk 0:00:06]}  Ne4 {[%clk 0:00:03]} 68. Kd4 {[%clk 0:00:06]}  Nf6 {[%clk 0:00:03]} 69. Ke3 {[%clk 0:00:03]}  Nd7 {[%clk 0:00:03]} 70. Kd4 {[%clk 0:00:04]}  Nf6 {[%clk 0:00:03]} 71. Ke3 {[%clk 0:00:04]}  Nd7 {[%clk 0:00:03]} 72. Kd4 {[%clk 0:00:04]}  Ne5 {[%clk 0:00:04]} 73. Ke3 {[%clk 0:00:02]}  Nc4+ {[%clk 0:00:03]} 74. Kd4 {[%clk 0:00:02]}  Ne5 {[%clk 0:00:03]} 75. Ke3 {[%clk 0:00:02]}  Kf6 {[%clk 0:00:03]} 76. Kd4 {[%clk 0:00:02]}  Nf3+ {[%clk 0:00:03]} 77. Ke3 {[%clk 0:00:03]}  Ne5 {[%clk 0:00:03]} 78. Kd4 {[%clk 0:00:03]}  Ng6 {[%clk 0:00:02]} 79. Ng4+ {[%clk 0:00:03]}  Ke6 {[%clk 0:00:03]} 80. Ne3 {[%clk 0:00:03]}  Ne7 {[%clk 0:00:02]} 81. Nc2 {[%clk 0:00:04]}  Nf5+ {[%clk 0:00:02]} 82. Kd3 {[%clk 0:00:04]}  Ng7 {[%clk 0:00:02]} 83. Nb4 {[%clk 0:00:04]}  Kd7 {[%clk 0:00:03]} 84. Kd4 {[%clk 0:00:05]}  Ne6+ {[%clk 0:00:03]} 85. Ke5 {[%clk 0:00:05]}  Nxc5 {[%clk 0:00:04]} 86. Kd4 {[%clk 0:00:05]}  Ne6+ {[%clk 0:00:04]} 87. Ke5 {[%clk 0:00:06]}  Nc5 {[%clk 0:00:04]} 88. Kd4 {[%clk 0:00:06]}  Kd6 {[%clk 0:00:04]} 89. Ke3 {[%clk 0:00:06]}  Ne6 {[%clk 0:00:04]} 90. Kd3 {[%clk 0:00:06]}  c5 {[%clk 0:00:05]} 91. Na2 {[%clk 0:00:07]}  Nf4+ {[%clk 0:00:05]} 92. Ke3 {[%clk 0:00:07]}  Ng2+ {[%clk 0:00:05]} 93. Kf2 {[%clk 0:00:07]}  Nh4 {[%clk 0:00:05]} 94. Ke3 {[%clk 0:00:07]}  Nf5+ {[%clk 0:00:05]} 95. Kd3 {[%clk 0:00:07]}  Ng3 {[%clk 0:00:04]} 96. Nc1 {[%clk 0:00:06]}  Ke5 {[%clk 0:00:03]} 97. Ke3 {[%clk 0:00:05]}  Ne4 {[%clk 0:00:03]} 98. Nd3+ {[%clk 0:00:05]}  Kd6 {[%clk 0:00:03]} 99. c4 {[%clk 0:00:01]}  bxc4 {[%clk 0:00:03]} 100. Nf4 {[%clk 0:00:02]}  Nf6 {[%clk 0:00:03]} 101. Kd2 {[%clk 0:00:02]}  Ke5 {[%clk 0:00:03]} 102. Kc2 {[%clk 0:00:00]}  Kxf4 {[%clk 0:00:02]} 0-1